[Event "NJSK 2018 Jeugd B"]
[Site "Assen, Netherlands"]
[Date "2018.05.03"]
[Round "5.3"]
[White "Bruil, Rembrandt"]
[Black "Cchung, Chi Yun"]
[Result "1-0"]
[TimeControl "40/90m+30m+30sec/move"]
[WhiteElo "1998"]
[BlackElo "1783"]

1. d4 {[%clk 01:30:57]} Nf6 {[%clk 01:30:51]} {[%emt 00:00:09]} 2. Bf4 {[%clk
01:31:22]} {[%emt 00:00:05]} d5 {[%clk 01:31:14]} {[%emt 00:00:07]} 3. e3
{[%clk 01:31:43]} {[%emt 00:00:09]} c5 {[%clk 01:31:25]} {[%emt 00:00:19]} 4.
c3 {[%clk 01:31:55]} {[%emt 00:00:18]} Nc6 {[%clk 01:30:23]} {[%emt 00:01:31]}
5. Nd2 {[%clk 01:32:05]} {[%emt 00:00:21]} Qb6 {[%clk 01:16:21]} {[%emt
00:14:32]} 6. Qc2 {[%clk 01:25:41]} {[%emt 00:06:55]} g6 {[%clk 01:16:12]}
{[%emt 00:00:38]} 7. Bd3 {[%clk 01:22:49]} {[%emt 00:03:22]} c4 {[%clk
01:11:30]} {[%emt 00:05:12]} 8. Be2 {[%clk 01:22:46]} {[%emt 00:00:34]} Bf5
{[%clk 01:11:55]} {[%emt 00:00:04]} 9. Qc1 {[%clk 01:22:57]} {[%emt 00:00:20]}
Na5 {[%clk 01:04:34]} {[%emt 00:07:50]} 10. Ngf3 {[%clk 01:19:17]} {[%emt
00:04:09]} Bg7 {[%clk 01:02:53]} {[%emt 00:02:12]} 11. O-O {[%clk 01:15:52]}
{[%emt 00:03:55]} O-O {[%clk 01:00:24]} {[%emt 00:02:59]} 12. Ne5 {[%clk
01:11:02]} {[%emt 00:05:20]} Qe6 {[%clk 00:46:32]} {[%emt 00:14:21]} 13. b3
{[%clk 00:52:31]} {[%emt 00:19:02]} b5 {[%clk 00:44:10]} {[%emt 00:02:51]} 14.
a4 {[%clk 00:45:07]} {[%emt 00:07:55]} a6 {[%clk 00:44:14]} {[%emt 00:00:26]}
15. Qa3 {[%clk 00:44:27]} {[%emt 00:01:10]} Ne4 {[%clk 00:29:10]} {[%emt
00:15:33]} 16. Nxe4 {[%clk 00:35:13]} {[%emt 00:09:45]} Bxe4 {[%clk 00:29:29]}
{[%emt 00:00:11]} 17. axb5 {[%clk 00:20:49]} {[%emt 00:14:54]} Nxb3 {[%clk
00:12:49]} {[%emt 00:17:10]} 18. Ra2 {[%clk 00:20:49]} {[%emt 00:00:30]} g5
{[%clk 00:09:16]} {[%emt 00:04:03]} 19. Bxg5 {[%clk 00:05:47]} {[%emt
00:15:31]} f6 {[%clk 00:09:26]} {[%emt 00:00:21]} 20. f3 {[%clk 00:06:07]}
{[%emt 00:00:10]} fxg5 {[%clk 00:07:02]} {[%emt 00:02:54]} 21. fxe4 {[%clk
00:06:16]} {[%emt 00:00:21]} Rxf1+ {[%clk 00:05:58]} {[%emt 00:01:33]} 22. Bxf1
{[%clk 00:06:29]} {[%emt 00:00:17]} Bxe5 {[%clk 00:05:55]} {[%emt 00:00:33]} 23.
exd5 {[%clk 00:05:08]} {[%emt 00:01:51]} Qf5 {[%clk 00:01:01]} {[%emt
00:05:24]} 24. Qxe7 {[%clk 00:00:55]} {[%emt 00:04:44]} Bxh2+ {[%clk 00:00:39]}
{[%emt 00:00:52]} 25. Kxh2 {[%clk 00:01:21]} {[%emt 00:00:04]} Qxf1 {[%clk
00:00:45]} {[%emt 00:00:24]} 26. Qxg5+ {[%clk 00:01:32]} {[%emt 00:00:18]} Kh8
{[%clk 00:00:52]} {[%emt 00:00:23]} 27. Rxa6 {[%clk 00:01:02]} {[%emt
00:01:01]} Rf8 {[%clk 00:00:44]} {[%emt 00:00:37]} 28. Ra7 {[%clk 00:01:02]}
{[%emt 00:00:31]} Qf6 {[%clk 00:00:35]} {[%emt 00:00:39]} 29. Qxf6 {[%clk
00:00:50]} {[%emt 00:00:42]} Rxf6 {[%clk 00:01:00]} {[%emt 00:00:05]} 30. Ra6
{[%clk 00:01:01]} {[%emt 00:00:20]} Rf5 {[%clk 00:00:37]} {[%emt 00:00:52]} 31.
e4 {[%clk 00:01:09]} {[%emt 00:00:22]} Rf4 {[%clk 00:00:56]} {[%emt 00:00:10]}
32. d6 {[%clk 00:01:29]} {[%emt 00:00:11]} Nc1 {[%clk 00:01:13]} {[%emt
00:00:12]} 33. d7 {[%clk 00:01:48]} {[%emt 00:00:11]} Ne2 {[%clk 00:01:39]}
{[%emt 00:00:04]} 34. d8=Q {[%clk 00:02:11]} {[%emt 00:00:07]} Kg7 {[%clk
00:02:01]} {[%emt 00:00:08]} 35. Qg5+ {[%clk 00:02:33]} {[%emt 00:00:09]} Kf7
{[%clk 00:02:21]} {[%emt 00:00:10]} 36. Qh5+ {[%clk 00:02:59]} {[%emt
00:00:04]} 1-0

[Event "NJSK 2018 Jeugd B"]
[Site "Assen, Netherlands"]
[Date "2018.05.03"]
[Round "5.4"]
[White "Wedda, Dries"]
[Black "Honkoop, Gilian"]
[Result "1/2-1/2"]
[TimeControl "40/90m+30m+30sec/move"]
[WhiteElo "2096"]
[BlackElo "1889"]

1. d4 {[%clk 01:30:58]} {[%emt 00:00:02]} Nf6 {[%clk 01:30:59]} {[%emt
00:00:02]} 2. c4 {[%clk 01:31:27]} e6 {[%clk 01:31:28]} 3. g3 {[%clk 01:31:44]}
{[%emt 00:00:12]} d5 {[%clk 01:31:46]} {[%emt 00:00:13]} 4. Nf3 {[%clk
01:32:09]} {[%emt 00:00:05]} Be7 {[%clk 01:32:09]} {[%emt 00:00:07]} 5. Bg2
{[%clk 01:32:34]} {[%emt 00:00:05]} O-O {[%clk 01:32:33]} {[%emt 00:00:06]} 6.
O-O {[%clk 01:33:01]} {[%emt 00:00:03]} dxc4 {[%clk 01:32:58]} {[%emt
00:00:05]} 7. Qc2 {[%clk 01:33:27]} {[%emt 00:00:04]} c6 {[%clk 01:33:20]}
{[%emt 00:00:08]} 8. Qxc4 {[%clk 01:32:35]} {[%emt 00:01:22]} b5 {[%clk
01:33:42]} {[%emt 00:00:08]} 9. Qd3 {[%clk 01:23:25]} {[%emt 00:09:40]} Bb7
{[%clk 01:32:41]} {[%emt 00:01:31]} 10. a4 {[%clk 01:20:33]} {[%emt 00:03:22]}
a6 {[%clk 01:23:15]} {[%emt 00:09:56]} 11. Bd2 {[%clk 01:20:07]} {[%emt
00:00:55]} b4 {[%clk 01:10:47]} {[%emt 00:12:59]} 12. a5 {[%clk 01:17:22]}
{[%emt 00:03:15]} c5 {[%clk 01:06:37]} {[%emt 00:04:40]} 13. Bg5 {[%clk
01:05:42]} {[%emt 00:12:09]} Nbd7 {[%clk 01:03:29]} {[%emt 00:03:39]} 14. Nbd2
{[%clk 01:04:27]} {[%emt 00:01:44]} h6 {[%clk 00:54:42]} {[%emt 00:09:17]} 15.
Bxf6 {[%clk 01:03:15]} {[%emt 00:01:42]} Bxf6 {[%clk 00:54:22]} {[%emt
00:00:50]} 16. Ng5 {[%clk 01:00:45]} {[%emt 00:02:59]} Bxg5 {[%clk 00:52:43]}
{[%emt 00:02:10]} 17. Bxb7 {[%clk 01:00:51]} {[%emt 00:00:25]} Ra7 {[%clk
00:53:04]} {[%emt 00:00:09]} 18. Bg2 {[%clk 00:58:27]} {[%emt 00:02:53]} Ne5
{[%clk 00:29:25]} {[%emt 00:24:09]} 19. dxe5 {[%clk 00:56:48]} {[%emt
00:02:10]} Qxd3 {[%clk 00:29:53]} {[%emt 00:00:02]} 20. exd3 {[%clk 00:57:16]}
{[%emt 00:00:01]} Bxd2 {[%clk 00:30:21]} {[%emt 00:00:02]} 21. h4 {[%clk
00:48:27]} {[%emt 00:09:19]} Rd8 {[%clk 00:26:22]} {[%emt 00:04:30]} 22. Be4
{[%clk 00:47:54]} {[%emt 00:01:02]} b3 {[%clk 00:25:48]} {[%emt 00:01:04]} 23.
Ra3 {[%clk 00:44:12]} {[%emt 00:04:12]} Bb4 {[%clk 00:23:49]} {[%emt 00:02:29]}
24. Rxb3 {[%clk 00:44:41]} {[%emt 00:00:02]} Bxa5 {[%clk 00:24:13]} {[%emt
00:00:06]} 25. Ra3 {[%clk 00:45:04]} {[%emt 00:00:07]} Bb4 {[%clk 00:24:14]}
{[%emt 00:00:29]} 26. Raa1 {[%clk 00:45:12]} {[%emt 00:00:22]} a5 {[%clk
00:24:16]} {[%emt 00:00:28]} 27. Rfc1 {[%clk 00:44:53]} {[%emt 00:00:48]} Rad7
{[%clk 00:23:25]} {[%emt 00:01:21]} 28. Rc4 {[%clk 00:45:09]} {[%emt 00:00:14]}
f5 {[%clk 00:20:14]} {[%emt 00:03:41]} 29. exf6 {[%clk 00:45:29]} {[%emt
00:00:10]} gxf6 {[%clk 00:20:40]} {[%emt 00:00:04]} 30. Bg6 {[%clk 00:42:24]}
{[%emt 00:03:35]} Kg7 {[%clk 00:14:06]} {[%emt 00:07:05]} 31. h5 {[%clk
00:42:32]} {[%emt 00:00:21]} Rd4 {[%clk 00:13:48]} {[%emt 00:00:48]} 32. Rxd4
{[%clk 00:38:32]} {[%emt 00:04:30]} Rxd4 {[%clk 00:14:16]} {[%emt 00:00:03]} 33.
Rd1 {[%clk 00:39:00]} {[%emt 00:00:01]} f5 {[%clk 00:11:37]} {[%emt 00:03:10]}
34. Kf1 {[%clk 00:38:49]} {[%emt 00:00:39]} 1/2-1/2

[Event "NJSK 2018 Jeugd B"]
[Site "Assen, Netherlands"]
[Date "2018.05.03"]
[Round "5.5"]
[White "Achuthan, Dylan"]
[Black "Van Randtwijk, Mick"]
[Result "1/2-1/2"]
[TimeControl "40/90m+30m+30sec/move"]
[WhiteElo "1673"]
[BlackElo "1992"]

1. e4 {[%clk 01:30:58]} {[%emt 00:00:03]} c5 {[%clk 01:30:55]} {[%emt
00:00:05]} 2. Nf3 {[%clk 01:31:22]} {[%emt 00:00:06]} d6 {[%clk 01:31:19]}
{[%emt 00:00:05]} 3. c3 {[%clk 01:31:46]} {[%emt 00:00:06]} Nf6 {[%clk
01:31:10]} {[%emt 00:00:39]} 4. Be2 {[%clk 01:32:08]} {[%emt 00:00:08]} Bd7
{[%clk 01:28:24]} {[%emt 00:03:16]} 5. d3 {[%clk 01:31:39]} {[%emt 00:00:59]}
Bc6 {[%clk 01:28:30]} {[%emt 00:00:23]} 6. O-O {[%clk 01:31:21]} {[%emt
00:00:48]} Nbd7 {[%clk 01:28:28]} {[%emt 00:00:32]} 7. Be3 {[%clk 01:30:53]}
{[%emt 00:00:58]} g6 {[%clk 01:26:08]} {[%emt 00:02:50]} 8. Nbd2 {[%clk
01:26:05]} {[%emt 00:05:18]} Bg7 {[%clk 01:26:17]} {[%emt 00:00:22]} 9. Qc2
{[%clk 01:22:57]} {[%emt 00:03:38]} Rc8 {[%clk 01:23:39]} {[%emt 00:03:08]} 10.
Rac1 {[%clk 01:20:46]} {[%emt 00:02:40]} O-O {[%clk 01:22:01]} {[%emt
00:02:08]} 11. Qb1 {[%clk 01:20:19]} {[%emt 00:00:57]} a6 {[%clk 01:19:19]}
{[%emt 00:03:13]} 12. d4 {[%clk 01:17:26]} {[%emt 00:03:23]} cxd4 {[%clk
01:17:58]} {[%emt 00:01:50]} 13. cxd4 {[%clk 01:17:48]} {[%emt 00:00:08]} b5
{[%clk 01:18:19]} {[%emt 00:00:09]} 14. d5 {[%clk 01:12:29]} {[%emt 00:05:50]}
Bb7 {[%clk 01:18:31]} {[%emt 00:00:18]} 15. Rxc8 {[%clk 01:11:20]} {[%emt
00:01:39]} Qxc8 {[%clk 01:18:49]} {[%emt 00:00:11]} 16. Rc1 {[%clk 01:11:29]}
{[%emt 00:00:21]} Qd8 {[%clk 01:13:26]} {[%emt 00:05:54]} 17. Nd4 {[%clk
01:09:12]} {[%emt 00:02:46]} Qa8 {[%clk 01:01:48]} {[%emt 00:12:07]} 18. N2b3
{[%clk 00:57:21]} {[%emt 00:12:22]} Re8 {[%clk 00:52:07]} {[%emt 00:10:11]} 19.
f3 {[%clk 00:42:52]} {[%emt 00:14:59]} e6 {[%clk 00:45:56]} {[%emt 00:06:42]}
20. dxe6 {[%clk 00:36:58]} {[%emt 00:06:23]} fxe6 {[%clk 00:46:20]} {[%emt
00:00:06]} 21. Na5 {[%clk 00:35:49]} {[%emt 00:01:39]} d5 {[%clk 00:41:36]}
{[%emt 00:05:14]} 22. Rc7 {[%clk 00:32:49]} {[%emt 00:03:29]} Qd8 {[%clk
00:28:30]} {[%emt 00:13:36]} 23. Qc1 {[%clk 00:18:44]} {[%emt 00:14:36]} Ba8
{[%clk 00:27:12]} {[%emt 00:01:48]} 24. Ndc6 {[%clk 00:17:32]} {[%emt
00:01:42]} Qxc7 {[%clk 00:25:42]} {[%emt 00:02:00]} 25. Ne7+ {[%clk 00:17:55]}
{[%emt 00:00:07]} Rxe7 {[%clk 00:26:08]} {[%emt 00:00:04]} 26. Qxc7 {[%clk
00:18:18]} {[%emt 00:00:07]} dxe4 {[%clk 00:26:13]} {[%emt 00:00:23]} 27. fxe4
{[%clk 00:17:33]} {[%emt 00:01:16]} Bxe4 {[%clk 00:26:23]} {[%emt 00:00:21]} 28.
Bg5 {[%clk 00:16:41]} {[%emt 00:01:22]} Rf7 {[%clk 00:23:16]} {[%emt 00:03:37]}
29. Bxf6 {[%clk 00:11:01]} {[%emt 00:06:10]} Bxf6 {[%clk 00:21:29]} {[%emt
00:02:17]} 30. Nb3 {[%clk 00:05:58]} {[%emt 00:05:33]} Nf8 {[%clk 00:17:14]}
{[%emt 00:04:45]} 31. Qb6 {[%clk 00:05:23]} {[%emt 00:01:05]} Bxb2 {[%clk
00:15:57]} {[%emt 00:01:47]} 32. Qxa6 {[%clk 00:04:12]} {[%emt 00:01:41]} b4
{[%clk 00:10:42]} {[%emt 00:05:45]} 33. Qc4 {[%clk 00:03:06]} {[%emt 00:01:36]}
Bd5 {[%clk 00:09:46]} {[%emt 00:01:25]} 34. Qxb4 {[%clk 00:02:39]} {[%emt
00:00:57]} Be5 {[%clk 00:09:35]} {[%emt 00:00:42]} 35. Nd2 {[%clk 00:01:57]}
{[%emt 00:01:12]} Rf4 {[%clk 00:08:52]} {[%emt 00:01:12]} 36. Qa5 {[%clk
00:00:50]} {[%emt 00:01:38]} Bd4+ {[%clk 00:09:08]} {[%emt 00:00:14]} 37. Kh1
{[%clk 00:01:15]} {[%emt 00:00:04]} Rf2 {[%clk 00:07:22]} {[%emt 00:02:16]} 38.
Bf3 {[%clk 00:01:11]} {[%emt 00:00:34]} Be3 {[%clk 00:07:29]} {[%emt 00:00:24]}
39. Bxd5 {[%clk 00:00:44]} {[%emt 00:00:57]} Bxd2 {[%clk 00:06:58]} {[%emt
00:01:01]} 40. Bxe6+ {[%clk 00:00:46]} {[%emt 00:00:28]} Nxe6 {[%clk 00:07:10]}
{[%emt 00:00:18]} 41. Qa8+ {[%clk 00:00:43]} {[%emt 00:00:33]} Rf8 {[%clk
00:02:41]} {[%emt 00:04:58]} 42. Qa6 {[%clk 00:30:01]} {[%emt 00:01:12]} Re8
{[%clk 00:31:57]} {[%emt 00:01:14]} 43. g3 {[%clk 00:29:12]} {[%emt 00:01:19]}
Be3 {[%clk 00:25:11]} {[%emt 00:07:16]} 44. a4 {[%clk 00:25:33]} {[%emt
00:04:10]} Re7 {[%clk 00:24:59]} {[%emt 00:00:41]} 45. a5 {[%clk 00:23:04]}
{[%emt 00:02:59]} Bc5 {[%clk 00:23:39]} {[%emt 00:01:50]} 46. Qc4 {[%clk
00:22:31]} {[%emt 00:01:04]} Kf7 {[%clk 00:22:42]} {[%emt 00:01:26]} 47. Qf1+
{[%clk 00:22:29]} {[%emt 00:00:32]} Ke8 {[%clk 00:22:44]} {[%emt 00:00:29]} 48.
Qb5+ {[%clk 00:22:27]} {[%emt 00:00:32]} Kd8 {[%clk 00:22:46]} {[%emt
00:00:28]} 49. Qb8+ {[%clk 00:21:50]} {[%emt 00:01:07]} Kd7 {[%clk 00:23:07]}
{[%emt 00:00:09]} 50. Qb5+ {[%clk 00:20:55]} {[%emt 00:01:24]} Kd6 {[%clk
00:23:05]} {[%emt 00:00:32]} 51. Qa6+ {[%clk 00:20:35]} {[%emt 00:00:50]} Kd5
{[%clk 00:23:27]} {[%emt 00:00:09]} 52. Qa8+ {[%clk 00:20:17]} {[%emt
00:00:48]} Kc4 {[%clk 00:23:46]} {[%emt 00:00:10]} 53. Qa6+ {[%clk 00:20:30]}
{[%emt 00:00:17]} Kb4 {[%clk 00:24:07]} {[%emt 00:00:09]} 54. Qd3 {[%clk
00:19:24]} {[%emt 00:01:37]} Kxa5 {[%clk 00:24:23]} {[%emt 00:00:13]} 55. Qc3+
{[%clk 00:18:25]} {[%emt 00:01:30]} Kb5 {[%clk 00:24:02]} {[%emt 00:00:50]} 56.
Qb3+ {[%clk 00:18:37]} {[%emt 00:00:19]} Kc6 {[%clk 00:24:11]} {[%emt
00:00:21]} 57. Qf3+ {[%clk 00:18:51]} {[%emt 00:00:15]} Kd6 {[%clk 00:23:26]}
{[%emt 00:01:15]} 58. Qd3+ {[%clk 00:18:49]} {[%emt 00:00:32]} Nd4 {[%clk
00:23:40]} {[%emt 00:00:16]} 59. Qa6+ {[%clk 00:18:38]} {[%emt 00:00:42]} Ke5
{[%clk 00:24:02]} {[%emt 00:00:07]} 60. Qc4 {[%clk 00:18:20]} {[%emt 00:00:48]}
Rc7 {[%clk 00:22:39]} {[%emt 00:01:54]} 61. Qc1 {[%clk 00:17:39]} {[%emt
00:01:11]} Bd6 {[%clk 00:21:35]} {[%emt 00:01:33]} 62. Qe3+ {[%clk 00:15:46]}
{[%emt 00:02:23]} Kd5 {[%clk 00:21:52]} {[%emt 00:00:13]} 63. Kg2 {[%clk
00:15:21]} {[%emt 00:00:55]} Rc2+ {[%clk 00:21:24]} {[%emt 00:00:58]} 64. Kh3
{[%clk 00:15:35]} {[%emt 00:00:16]} Be5 {[%clk 00:21:07]} {[%emt 00:00:47]} 65.
Qa3 {[%clk 00:14:45]} {[%emt 00:01:21]} h5 {[%clk 00:18:50]} {[%emt 00:02:46]}
66. Qa5+ {[%clk 00:14:14]} {[%emt 00:01:01]} Ke6 {[%clk 00:18:26]} {[%emt
00:00:55]} 67. Qa6+ {[%clk 00:14:09]} {[%emt 00:00:35]} Kf5 {[%clk 00:18:38]}
{[%emt 00:00:17]} 68. Qd3+ {[%clk 00:14:26]} {[%emt 00:00:13]} Kf6 {[%clk
00:18:38]} {[%emt 00:00:30]} 69. Qf1+ {[%clk 00:14:16]} {[%emt 00:00:40]} Kg5
{[%clk 00:18:12]} {[%emt 00:00:55]} 70. Qd3 {[%clk 00:14:13]} {[%emt 00:00:34]}
Re2 {[%clk 00:18:23]} {[%emt 00:00:19]} 71. Qa3 {[%clk 00:13:43]} {[%emt
00:01:00]} Kh6 {[%clk 00:17:58]} {[%emt 00:00:55]} 72. Qf8 {[%clk 00:13:51]}
{[%emt 00:00:21]} Bg7 {[%clk 00:18:18]} {[%emt 00:00:11]} 73. Qf4 {[%clk
00:14:01]} {[%emt 00:00:20]} g5 {[%clk 00:18:28]} {[%emt 00:00:20]} 74. Qd6
{[%clk 00:13:15]} {[%emt 00:01:16]} Kh7 {[%clk 00:18:50]} {[%emt 00:00:08]} 75.
g4 {[%clk 00:12:56]} {[%emt 00:00:49]} h4 {[%clk 00:19:12]} {[%emt 00:00:09]}
76. Qh6 {[%clk 00:13:01]} {[%emt 00:00:24]} Kg8 {[%clk 00:19:07]} {[%emt
00:00:35]} 77. Qxg7+ {[%clk 00:13:23]} {[%emt 00:00:08]} Kxg7 {[%emt 00:00:26]}
1/2-1/2

[Event "NJSK 2018 Jeugd B"]
[Site "Assen, Netherlands"]
[Date "2018.05.03"]
[Round "5.6"]
[White "Grutter, Tim"]
[Black "Noordenbos, Daan"]
[Result "1-0"]
[TimeControl "40/90m+30m+30sec/move"]
[WhiteElo "1974"]
[BlackElo "1763"]

1. e4 {[%clk 01:30:56]} {[%emt 00:00:04]} e6 {[%clk 01:30:51]} {[%emt
00:00:09]} 2. d4 {[%clk 01:30:45]} {[%emt 00:00:42]} d5 {[%clk 01:31:14]}
{[%emt 00:00:06]} 3. Nd2 {[%clk 01:31:07]} {[%emt 00:00:10]} Nf6 {[%clk
01:31:35]} {[%emt 00:00:08]} 4. e5 {[%clk 01:31:33]} {[%emt 00:00:04]} Nfd7
{[%clk 01:31:59]} {[%emt 00:00:06]} 5. Bd3 {[%clk 01:32:01]} {[%emt 00:00:03]}
c5 {[%clk 01:32:17]} {[%emt 00:00:12]} 6. c3 {[%clk 01:32:27]} {[%emt
00:00:04]} Nc6 {[%clk 01:32:29]} {[%emt 00:00:18]} 7. Ne2 {[%clk 01:32:53]}
{[%emt 00:00:04]} Be7 {[%clk 01:32:07]} {[%emt 00:00:51]} 8. O-O {[%clk
01:31:50]} {[%emt 00:01:34]} Qb6 {[%clk 01:28:43]} {[%emt 00:03:53]} 9. Nf3
{[%clk 01:31:21]} {[%emt 00:00:59]} h6 {[%clk 01:10:02]} {[%emt 00:19:11]} 10.
Kh1 {[%clk 01:14:04]} {[%emt 00:17:48]} g5 {[%clk 01:06:25]} {[%emt 00:04:06]}
11. Ne1 {[%clk 01:09:41]} {[%emt 00:04:53]} c4 {[%clk 00:45:05]} {[%emt
00:21:50]} 12. Bc2 {[%clk 01:09:07]} {[%emt 00:01:04]} f5 {[%clk 00:43:25]}
{[%emt 00:02:10]} 13. exf6 {[%clk 01:09:11]} {[%emt 00:00:26]} Nxf6 {[%clk
00:43:47]} {[%emt 00:00:08]} 14. Bg6+ {[%clk 01:07:12]} {[%emt 00:02:30]} Kd8
{[%clk 00:43:31]} {[%emt 00:00:46]} 15. f4 {[%clk 01:06:33]} {[%emt 00:01:09]}
Rg8 {[%clk 00:42:06]} {[%emt 00:01:55]} 16. Qc2 {[%clk 01:02:43]} {[%emt
00:04:19]} Ne8 {[%clk 00:37:31]} {[%emt 00:05:05]} 17. Nf3 {[%clk 00:56:44]}
{[%emt 00:06:29]} g4 {[%clk 00:33:31]} {[%emt 00:04:31]} 18. Ne5 {[%clk
00:56:11]} {[%emt 00:01:03]} Nxe5 {[%clk 00:32:41]} {[%emt 00:01:19]} 19. fxe5
{[%clk 00:55:51]} {[%emt 00:00:50]} Bg5 {[%clk 00:32:36]} {[%emt 00:00:35]} 20.
b3 {[%clk 00:53:57]} {[%emt 00:02:25]} Ng7 {[%clk 00:29:23]} {[%emt 00:03:42]}
21. bxc4 {[%clk 00:50:47]} {[%emt 00:03:40]} dxc4 {[%clk 00:28:54]} {[%emt
00:00:59]} 22. Ng3 {[%clk 00:49:33]} {[%emt 00:01:44]} Bh4 {[%clk 00:27:36]}
{[%emt 00:01:48]} 23. Ne4 {[%clk 00:48:16]} {[%emt 00:01:48]} Nf5 {[%clk
00:27:51]} {[%emt 00:00:14]} 24. Bxf5 {[%clk 00:48:18]} {[%emt 00:00:29]} exf5
{[%clk 00:28:19]} {[%emt 00:00:01]} 25. Nd6 {[%clk 00:47:09]} {[%emt 00:01:40]}
Bd7 {[%clk 00:26:46]} {[%emt 00:02:02]} 26. Rb1 {[%clk 00:41:11]} {[%emt
00:06:28]} Qc6 {[%clk 00:26:24]} {[%emt 00:00:52]} 27. Nxb7+ {[%clk 00:39:54]}
{[%emt 00:01:48]} 1-0

[Event "NJSK 2018 Jeugd B"]
[Site "Assen, Netherlands"]
[Date "2018.05.03"]
[Round "5.7"]
[White "Bruggink, Tycho"]
[Black "Emans, Job"]
[Result "0-1"]
[TimeControl "40/90m+30m+30sec/move"]
[WhiteElo "1899"]
[BlackElo "1803"]

1. e4 {[%clk 01:30:59]} {[%emt 18:22:59]} e6 {[%clk 01:30:53]} {[%emt
00:00:07]} 2. d4 {[%clk 01:31:22]} {[%emt 00:00:08]} d5 {[%clk 01:31:14]}
{[%emt 00:00:08]} 3. exd5 {[%clk 01:31:49]} {[%emt 00:00:04]} exd5 {[%clk
01:31:39]} {[%emt 00:00:05]} 4. Bd3 {[%clk 01:31:32]} {[%emt 00:00:46]} Bd6
{[%clk 01:31:53]} {[%emt 00:00:16]} 5. Ne2 {[%clk 01:31:57]} {[%emt 00:00:05]}
Ne7 {[%clk 01:31:24]} {[%emt 00:00:59]} 6. Bf4 {[%clk 01:25:56]} {[%emt
00:06:31]} Nbc6 {[%clk 01:30:09]} {[%emt 00:01:45]} 7. c3 {[%clk 01:23:34]}
{[%emt 00:02:53]} Bf5 {[%clk 01:28:18]} {[%emt 00:02:19]} 8. Qc2 {[%clk
01:19:08]} {[%emt 00:04:56]} Bxd3 {[%clk 01:25:33]} {[%emt 00:03:16]} 9. Qxd3
{[%clk 01:19:34]} {[%emt 00:00:04]} Ng6 {[%clk 01:25:08]} {[%emt 00:00:55]} 10.
Bg3 {[%clk 01:12:00]} {[%emt 00:08:04]} O-O {[%clk 01:19:25]} {[%emt 00:06:13]}
11. Nd2 {[%clk 01:12:19]} {[%emt 00:00:11]} Re8 {[%clk 01:16:33]} {[%emt
00:03:23]} 12. O-O-O {[%clk 01:12:38]} {[%emt 00:00:10]} Qd7 {[%clk 01:10:00]}
{[%emt 00:07:03]} 13. Bxd6 {[%clk 00:55:26]} {[%emt 00:17:42]} Qxd6 {[%clk
01:08:19]} {[%emt 00:02:11]} 14. g3 {[%clk 00:54:14]} {[%emt 00:01:41]} Rab8
{[%clk 01:01:16]} {[%emt 00:07:35]} 15. h4 {[%clk 00:51:51]} {[%emt 00:02:52]}
b5 {[%clk 01:00:47]} {[%emt 00:00:59]} 16. h5 {[%clk 00:51:34]} {[%emt
00:00:46]} Nf8 {[%clk 01:01:05]} {[%emt 00:00:12]} 17. g4 {[%clk 00:51:17]}
{[%emt 00:00:48]} b4 {[%clk 00:59:03]} {[%emt 00:02:32]} 18. c4 {[%clk
00:51:37]} {[%emt 00:00:10]} b3 {[%clk 00:57:36]} {[%emt 00:01:57]} 19. a3
{[%clk 00:50:08]} {[%emt 00:01:59]} Ne6 {[%clk 00:44:19]} {[%emt 00:13:47]} 20.
c5 {[%clk 00:47:59]} {[%emt 00:02:39]} Qe7 {[%clk 00:43:12]} {[%emt 00:01:37]}
21. f4 {[%clk 00:42:42]} {[%emt 00:05:45]} Nxc5 {[%clk 00:30:34]} {[%emt
00:13:10]} 22. dxc5 {[%clk 00:43:07]} {[%emt 00:00:05]} Qxe2 {[%clk 00:30:57]}
{[%emt 00:00:06]} 23. Nxb3 {[%clk 00:43:23]} {[%emt 00:00:15]} Na5 {[%clk
00:29:07]} {[%emt 00:02:20]} 24. Qxe2 {[%clk 00:42:07]} {[%emt 00:01:45]} Nxb3+
{[%clk 00:29:29]} {[%emt 00:00:09]} 25. Kb1 {[%clk 00:42:33]} {[%emt 00:00:03]}
Rxe2 {[%clk 00:29:50]} {[%emt 00:00:09]} 26. Rxd5 {[%clk 00:42:58]} {[%emt
00:00:05]} Na5 {[%clk 00:27:35]} {[%emt 00:02:46]} 27. b4 {[%clk 00:43:16]}
{[%emt 00:00:13]} Nc4 {[%clk 00:25:23]} {[%emt 00:02:41]} 28. Rh3 {[%clk
00:43:30]} {[%emt 00:00:15]} Rbe8 {[%clk 00:25:30]} {[%emt 00:00:23]} 29. Rhd3
{[%clk 00:43:26]} {[%emt 00:00:35]} g6 {[%clk 00:20:57]} {[%emt 00:05:04]} 30.
h6 {[%clk 00:43:36]} {[%emt 00:00:19]} Kf8 {[%clk 00:19:09]} {[%emt 00:02:17]}
31. Rd7 {[%clk 00:43:24]} {[%emt 00:00:42]} Rh2 {[%clk 00:16:21]} {[%emt
00:03:18]} 32. Rc3 {[%clk 00:42:46]} {[%emt 00:01:08]} Re1+ {[%clk 00:16:33]}
{[%emt 00:00:18]} 0-1